[Event "*** Titled Tuesday Blitz"]
[Site "Chess.com"]
[Date "2020.05.19"]
[Round "9"]
[White "quesfr"]
[Black "Koalaskakistis"]
[Result "1-0"]
[WhiteElo "2306"]
[BlackElo "2455"]
[TimeControl "180+1"]
[EndTime "13:47:31 PDT"]
[Termination "quesfr won on time"]

1. e4 {[%clk 0:03:00.9]} 1... e5 {[%clk 0:02:57.5]} 2. Nf3 {[%clk 0:03:00.3]}
2... Nc6 {[%clk 0:02:57.9]} 3. Nc3 {[%clk 0:03:00.4]} 3... Nf6 {[%clk
0:02:57.2]} 4. d4 {[%clk 0:03:00.9]} 4... exd4 {[%clk 0:02:57.5]} 5. Nxd4 {[%clk
0:03:01.8]} 5... Bb4 {[%clk 0:02:54.3]} 6. Nxc6 {[%clk 0:03:01.9]} 6... bxc6
{[%clk 0:02:52.7]} 7. Bd3 {[%clk 0:03:02.4]} 7... d5 {[%clk 0:02:50.2]} 8. exd5
{[%clk 0:03:03.3]} 8... O-O {[%clk 0:02:50.2]} 9. O-O {[%clk 0:03:03.5]} 9...
cxd5 {[%clk 0:02:49.7]} 10. h3 {[%clk 0:03:03.1]} 10... c6 {[%clk 0:02:48.4]}
11. Qf3 {[%clk 0:03:03]} 11... Rb8 {[%clk 0:02:39.6]} 12. Bf4 {[%clk 0:03:02.8]}
12... Bd6 {[%clk 0:02:39.4]} 13. b3 {[%clk 0:03:03.1]} 13... Be6 {[%clk
0:02:34]} 14. Rad1 {[%clk 0:03:01.9]} 14... Bxf4 {[%clk 0:02:31.4]} 15. Qxf4
{[%clk 0:03:00.5]} 15... Qa5 {[%clk 0:02:31.5]} 16. Ne2 {[%clk 0:02:47.4]} 16...
Rfe8 {[%clk 0:02:24.5]} 17. Qd6 {[%clk 0:02:39.9]} 17... Bd7 {[%clk 0:02:14.4]}
18. Ng3 {[%clk 0:02:19.8]} 18... Qxa2 {[%clk 0:01:48.1]} 19. Ra1 {[%clk
0:02:15.2]} 19... Qb2 {[%clk 0:01:48]} 20. Rxa7 {[%clk 0:02:14.7]} 20... Be6
{[%clk 0:01:42.9]} 21. Qxc6 {[%clk 0:02:07.8]} 21... Qd4 {[%clk 0:01:41.5]} 22.
Ra4 {[%clk 0:01:57.9]} 22... Qe5 {[%clk 0:01:36.5]} 23. Qc5 {[%clk 0:01:35.3]}
23... h5 {[%clk 0:01:22.7]} 24. f4 {[%clk 0:01:13.1]} 24... Qb2 {[%clk
0:01:12.6]} 25. Raa1 {[%clk 0:01:08.1]} 25... Ne4 {[%clk 0:00:50]} 26. Bxe4
{[%clk 0:00:55.2]} 26... dxe4 {[%clk 0:00:50.9]} 27. Rab1 {[%clk 0:00:50.1]}
27... Qa2 {[%clk 0:00:43.5]} 28. Nxe4 {[%clk 0:00:42.2]} 28... Rbc8 {[%clk
0:00:39.9]} 29. Qg5 {[%clk 0:00:22.9]} 29... Kf8 {[%clk 0:00:21.8]} 30. c4
{[%clk 0:00:22.8]} 30... Bxc4 {[%clk 0:00:17.8]} 31. bxc4 {[%clk 0:00:12.9]}
31... Rxe4 {[%clk 0:00:17.6]} 32. Qxh5 {[%clk 0:00:12.5]} 32... Kg8 {[%clk
0:00:15]} 33. Rbe1 {[%clk 0:00:10.5]} 33... Qa7+ {[%clk 0:00:09.6]} 34. Kh1
{[%clk 0:00:09.8]} 34... Rxe1 {[%clk 0:00:08.7]} 35. Rxe1 {[%clk 0:00:10.7]}
35... Qf2 {[%clk 0:00:09]} 36. Qe5 {[%clk 0:00:08.2]} 36... Rxc4 {[%clk
0:00:05.7]} 37. f5 {[%clk 0:00:08.6]} 37... Rc8 {[%clk 0:00:03.8]} 38. Qe4
{[%clk 0:00:04.1]} 38... Rf8 {[%clk 0:00:03.3]} 39. Rd1 {[%clk 0:00:03.3]} 39...
Rc8 {[%clk 0:00:01.4]} 40. Qd5 {[%clk 0:00:01.8]} 40... Rf8 {[%clk 0:00:01.7]}
41. Qe5 {[%clk 0:00:01.1]} 41... Qh4 {[%clk 0:00:01.6]} 42. Qe4 {[%clk
0:00:01.7]} 42... Qh6 {[%clk 0:00:01.7]} 43. Qe5 {[%clk 0:00:02.2]} 43... Qf6
{[%clk 0:00:02.6]} 44. Re1 {[%clk 0:00:01.9]} 44... Qd8 {[%clk 0:00:02.1]} 45.
Qe7 {[%clk 0:00:02]} 45... Qc8 {[%clk 0:00:01.9]} 46. Qe2 {[%clk 0:00:02.9]}
46... f6 {[%clk 0:00:01.8]} 47. Qf2 {[%clk 0:00:02.3]} 47... Qc6 {[%clk
0:00:01]} 48. Rf1 {[%clk 0:00:03.2]} 1-0

[Event "*** Titled Tuesday Blitz"]
[Site "Chess.com"]
[Date "2020.05.19"]
[Round "9"]
[White "alenee"]
[Black "dbrankovic68"]
[Result "0-1"]
[WhiteElo "2403"]
[BlackElo "2348"]
[TimeControl "180+1"]
[EndTime "13:47:32 PDT"]
[Termination "dbrankovic68 won by resignation"]

1. e4 {[%clk 0:03:00.9]} 1... c5 {[%clk 0:02:59.9]} 2. Nf3 {[%clk 0:03:00.9]}
2... g6 {[%clk 0:02:59.9]} 3. d4 {[%clk 0:03:00.7]} 3... cxd4 {[%clk 0:03:00.4]}
4. Nxd4 {[%clk 0:03:01.2]} 4... Bg7 {[%clk 0:02:59.9]} 5. Nc3 {[%clk 0:03:01.8]}
5... Nc6 {[%clk 0:03:00.3]} 6. Nf3 {[%clk 0:03:02.4]} 6... d6 {[%clk 0:02:58]}
7. Bc4 {[%clk 0:03:02.7]} 7... Nf6 {[%clk 0:02:56]} 8. h3 {[%clk 0:03:03.1]}
8... O-O {[%clk 0:02:56]} 9. O-O {[%clk 0:03:03.3]} 9... a6 {[%clk 0:02:54.5]}
10. Re1 {[%clk 0:03:03.1]} 10... b5 {[%clk 0:02:53.7]} 11. Bb3 {[%clk
0:03:03.7]} 11... Bb7 {[%clk 0:02:46.2]} 12. Nd5 {[%clk 0:03:03.6]} 12... Na5
{[%clk 0:02:42.6]} 13. c3 {[%clk 0:03:03.3]} 13... Nxb3 {[%clk 0:02:40.8]} 14.
axb3 {[%clk 0:03:03.9]} 14... Rc8 {[%clk 0:02:34]} 15. Bg5 {[%clk 0:03:02]}
15... Bxd5 {[%clk 0:02:18.9]} 16. exd5 {[%clk 0:03:00.9]} 16... Rc5 {[%clk
0:02:18.6]} 17. Bxf6 {[%clk 0:02:57.8]} 17... Bxf6 {[%clk 0:02:17.8]} 18. b4
{[%clk 0:02:57.9]} 18... Rc4 {[%clk 0:02:13]} 19. Rxa6 {[%clk 0:02:58]} 19...
Qd7 {[%clk 0:02:09.2]} 20. Qd3 {[%clk 0:02:54.5]} 20... Rfc8 {[%clk 0:02:05.4]}
21. Rea1 {[%clk 0:02:52.6]} 21... R8c7 {[%clk 0:01:53.6]} 22. Nd2 {[%clk
0:02:30.1]} 22... Rf4 {[%clk 0:01:51.8]} 23. Ne4 {[%clk 0:02:14.6]} 23... Be5
{[%clk 0:01:47]} 24. g3 {[%clk 0:02:09.9]} 24... Rf5 {[%clk 0:01:38]} 25. Ra8+
{[%clk 0:01:58.1]} 25... Kg7 {[%clk 0:01:28.1]} 26. f4 {[%clk 0:01:56.7]} 26...
Bf6 {[%clk 0:01:28.2]} 27. Kg2 {[%clk 0:01:52.9]} 27... e6 {[%clk 0:01:17.1]}
28. dxe6 {[%clk 0:01:38.1]} 28... Qxe6 {[%clk 0:01:16.2]} 29. Qf3 {[%clk
0:01:13.6]} 29... Rd5 {[%clk 0:01:09.3]} 30. g4 {[%clk 0:01:04.7]} 30... Re7
{[%clk 0:01:06.2]} 31. Re1 {[%clk 0:00:43.9]} 31... Bh4 {[%clk 0:00:55.7]} 32.
Re2 {[%clk 0:00:34.7]} 32... Qd7 {[%clk 0:00:22.8]} 33. g5 {[%clk 0:00:33.6]}
33... Qf5 {[%clk 0:00:20.6]} 34. Nf6 {[%clk 0:00:17.4]} 34... Rxe2+ {[%clk
0:00:18.9]} 35. Qxe2 {[%clk 0:00:17]} 35... Bxg5 {[%clk 0:00:16.3]} 36. fxg5
{[%clk 0:00:15.8]} 36... Qxg5+ {[%clk 0:00:15.7]} 37. Ng4 {[%clk 0:00:13.6]}
37... h5 {[%clk 0:00:14.8]} 38. Qe3 {[%clk 0:00:08]} 38... hxg4 {[%clk
0:00:14.5]} 39. Qxg5 {[%clk 0:00:07.3]} 39... Rxg5 {[%clk 0:00:14.9]} 40. hxg4
{[%clk 0:00:08]} 40... Rxg4+ {[%clk 0:00:15]} 41. Kf3 {[%clk 0:00:08.6]} 41...
Rg5 {[%clk 0:00:15]} 42. Rd8 {[%clk 0:00:08.4]} 42... Rd5 {[%clk 0:00:15.3]} 43.
Ke3 {[%clk 0:00:07.2]} 43... f5 {[%clk 0:00:14.7]} 44. b3 {[%clk 0:00:06.4]}
44... g5 {[%clk 0:00:12.7]} 45. c4 {[%clk 0:00:06.7]} 45... f4+ {[%clk 0:00:13]}
46. Ke4 {[%clk 0:00:05.8]} 46... Re5+ {[%clk 0:00:13.1]} 47. Kf3 {[%clk
0:00:06]} 47... Kf6 {[%clk 0:00:13]} 48. Rxd6+ {[%clk 0:00:04.1]} 48... Kf5
{[%clk 0:00:13.1]} 49. Rd5 {[%clk 0:00:04.6]} 49... Rxd5 {[%clk 0:00:12.2]} 50.
cxd5 {[%clk 0:00:05.2]} 50... Ke5 {[%clk 0:00:12.6]} 51. d6 {[%clk 0:00:05.4]}
51... Kxd6 {[%clk 0:00:12.7]} 52. Kg4 {[%clk 0:00:06]} 52... Ke5 {[%clk
0:00:12.9]} 0-1

[Event "*** Titled Tuesday Blitz"]
[Site "Chess.com"]
[Date "2020.05.19"]
[Round "9"]
[White "VerdeNotte"]
[Black "lucliasco"]
[Result "0-1"]
[WhiteElo "2811"]
[BlackElo "2690"]
[TimeControl "180+1"]
[EndTime "13:47:34 PDT"]
[Termination "lucliasco won by resignation"]

1. e4 {[%clk 0:03:00.9]} 1... e5 {[%clk 0:02:58.3]} 2. Nf3 {[%clk 0:02:58.3]}
2... d6 {[%clk 0:02:58.8]} 3. d4 {[%clk 0:02:55.6]} 3... exd4 {[%clk 0:02:59.7]}
4. Nxd4 {[%clk 0:02:55.7]} 4... Nf6 {[%clk 0:03:00.4]} 5. Nc3 {[%clk 0:02:54.8]}
5... Be7 {[%clk 0:03:00.4]} 6. g3 {[%clk 0:02:54.6]} 6... O-O {[%clk 0:03:00.9]}
7. Bg2 {[%clk 0:02:54.6]} 7... Nc6 {[%clk 0:02:59.1]} 8. O-O {[%clk 0:02:52.5]}
8... Nxd4 {[%clk 0:02:55.1]} 9. Qxd4 {[%clk 0:02:52.2]} 9... Bd7 {[%clk
0:02:55.7]} 10. e5 {[%clk 0:02:40.8]} 10... dxe5 {[%clk 0:02:49]} 11. Qxe5
{[%clk 0:02:40.9]} 11... Bd6 {[%clk 0:02:48.7]} 12. Qd4 {[%clk 0:02:35.6]} 12...
Bf5 {[%clk 0:02:39.5]} 13. Bg5 {[%clk 0:02:25.8]} 13... h6 {[%clk 0:02:25.2]}
14. Bxf6 {[%clk 0:02:23.9]} 14... Qxf6 {[%clk 0:02:25.6]} 15. Qxf6 {[%clk
0:02:22.9]} 15... gxf6 {[%clk 0:02:26.5]} 16. Rad1 {[%clk 0:01:57.9]} 16... Bxc2
{[%clk 0:02:11.4]} 17. Rd2 {[%clk 0:01:57.5]} 17... Bf5 {[%clk 0:02:11.3]} 18.
Bxb7 {[%clk 0:01:51.8]} 18... Rab8 {[%clk 0:02:11.8]} 19. Be4 {[%clk 0:01:50.4]}
19... Bh3 {[%clk 0:02:09.3]} 20. Bg2 {[%clk 0:01:46.5]} 20... Be6 {[%clk
0:02:04.4]} 21. Rc1 {[%clk 0:01:38.3]} 21... Kg7 {[%clk 0:02:03.3]} 22. b3
{[%clk 0:01:36.7]} 22... a5 {[%clk 0:01:57.3]} 23. Na4 {[%clk 0:01:27.6]} 23...
h5 {[%clk 0:01:50]} 24. h4 {[%clk 0:01:19.2]} 24... f5 {[%clk 0:01:43]} 25. Rc6
{[%clk 0:00:35.1]} 25... Bd7 {[%clk 0:01:33.8]} 26. Rc4 {[%clk 0:00:29.6]} 26...
Bb5 {[%clk 0:01:30.5]} 27. Rcd4 {[%clk 0:00:29.8]} 27... Rfe8 {[%clk 0:01:27.6]}
28. Bf3 {[%clk 0:00:25.7]} 28... f4 {[%clk 0:01:22]} 29. Bxh5 {[%clk 0:00:20.2]}
29... fxg3 {[%clk 0:01:17.8]} 30. fxg3 {[%clk 0:00:20.5]} 30... Re1+ {[%clk
0:01:12.6]} 31. Kf2 {[%clk 0:00:19.2]} 31... Rbe8 {[%clk 0:01:13.5]} 32. Nc3
{[%clk 0:00:12.3]} 32... Bd7 {[%clk 0:01:07.9]} 33. Re2 {[%clk 0:00:12.5]} 33...
R1xe2+ {[%clk 0:01:04.4]} 34. Nxe2 {[%clk 0:00:12.8]} 34... Bc5 {[%clk
0:01:04.5]} 35. Kf1 {[%clk 0:00:09.6]} 35... Bh3+ {[%clk 0:01:01.8]} 36. Kf2
{[%clk 0:00:06.7]} 36... Rxe2+ {[%clk 0:01:00.8]} 37. Kxe2 {[%clk 0:00:07.3]}
37... Bxd4 {[%clk 0:01:01.6]} 38. Kd3 {[%clk 0:00:07.8]} 38... Be5 {[%clk
0:01:00.9]} 39. Kc4 {[%clk 0:00:04.6]} 39... Bxg3 {[%clk 0:01:00.2]} 40. Kb5
{[%clk 0:00:05.2]} 40... Be1 {[%clk 0:01:00.4]} 41. Be2 {[%clk 0:00:03.3]} 41...
Bd7+ {[%clk 0:00:59.3]} 42. Ka6 {[%clk 0:00:03.7]} 42... Bxh4 {[%clk 0:00:59.4]}
43. Kxa5 {[%clk 0:00:03.9]} 43... c5 {[%clk 0:00:57.6]} 44. Kb6 {[%clk
0:00:03.6]} 44... Bf2 {[%clk 0:00:56.8]} 45. Kc7 {[%clk 0:00:03.8]} 45... Be6
{[%clk 0:00:56.5]} 46. Bd1 {[%clk 0:00:03.7]} 46... c4 {[%clk 0:00:55.8]} 47.
bxc4 {[%clk 0:00:02.1]} 47... Bxc4 {[%clk 0:00:56.7]} 48. a4 {[%clk 0:00:02.6]}
48... Be1 {[%clk 0:00:56.3]} 49. Kb6 {[%clk 0:00:02.8]} 49... f5 {[%clk
0:00:51.5]} 50. a5 {[%clk 0:00:03.3]} 50... f4 {[%clk 0:00:49.3]} 51. a6 {[%clk
0:00:03.8]} 51... Bf2+ {[%clk 0:00:49.2]} 52. Kb7 {[%clk 0:00:03.5]} 52... Bd5+
{[%clk 0:00:48.7]} 53. Kb8 {[%clk 0:00:04]} 53... Bd4 {[%clk 0:00:47.5]} 54. a7
{[%clk 0:00:03.7]} 54... Be5+ {[%clk 0:00:46.9]} 55. Kc8 {[%clk 0:00:04.3]}
55... Kf6 {[%clk 0:00:44.7]} 56. Bb3 {[%clk 0:00:04.5]} 56... Bg2 {[%clk
0:00:33.7]} 57. Kd7 {[%clk 0:00:04.1]} 57... Bd4 {[%clk 0:00:30.3]} 58. Kd6
{[%clk 0:00:01.9]} 58... Bxa7 {[%clk 0:00:30.2]} 59. Bd1 {[%clk 0:00:02.8]}
59... Be3 {[%clk 0:00:30]} 60. Kc7 {[%clk 0:00:02.7]} 60... f3 {[%clk
0:00:30.3]} 0-1

[Event "*** Titled Tuesday Blitz"]
[Site "Chess.com"]
[Date "2020.05.19"]
[Round "9"]
[White "davekoenig"]
[Black "MF1966Idrisov"]
[Result "1/2-1/2"]
[WhiteElo "2171"]
[BlackElo "2306"]
[TimeControl "180+1"]
[EndTime "13:47:34 PDT"]
[Termination "Game drawn by repetition"]

1. e4 {[%clk 0:03:00.9]} 1... d5 {[%clk 0:02:58.6]} 2. exd5 {[%clk 0:02:59.9]}
2... Qxd5 {[%clk 0:02:58.6]} 3. Nc3 {[%clk 0:02:59.4]} 3... Qd6 {[%clk
0:02:58.2]} 4. d4 {[%clk 0:02:59.4]} 4... a6 {[%clk 0:02:58.4]} 5. Nf3 {[%clk
0:02:58.8]} 5... Nf6 {[%clk 0:02:58.4]} 6. g3 {[%clk 0:02:46.4]} 6... Bg4 {[%clk
0:02:47.2]} 7. Bg2 {[%clk 0:02:46.4]} 7... e6 {[%clk 0:02:43.3]} 8. Bf4 {[%clk
0:02:38.7]} 8... Qd7 {[%clk 0:02:42.3]} 9. Qd2 {[%clk 0:02:24.1]} 9... Nc6
{[%clk 0:02:34.1]} 10. Ne5 {[%clk 0:02:18.2]} 10... Nxe5 {[%clk 0:02:27]} 11.
dxe5 {[%clk 0:02:16]} 11... Nd5 {[%clk 0:02:10.4]} 12. Nxd5 {[%clk 0:02:10.2]}
12... exd5 {[%clk 0:02:06.1]} 13. Qxd5 {[%clk 0:02:09.6]} 13... Qxd5 {[%clk
0:01:58.3]} 14. Bxd5 {[%clk 0:02:09.6]} 14... c6 {[%clk 0:01:58.1]} 15. Be4
{[%clk 0:02:09.6]} 15... O-O-O {[%clk 0:01:47.1]} 16. f3 {[%clk 0:02:09.3]}
16... Be6 {[%clk 0:01:46.5]} 17. Be3 {[%clk 0:01:54.7]} 17... Bd5 {[%clk
0:01:33.7]} 18. Bf5+ {[%clk 0:01:46]} 18... Be6 {[%clk 0:01:30.6]} 19. Bxe6+
{[%clk 0:01:44.2]} 19... fxe6 {[%clk 0:01:30.1]} 20. Ke2 {[%clk 0:01:43.2]}
20... Rd5 {[%clk 0:01:29.9]} 21. f4 {[%clk 0:01:42.3]} 21... Bc5 {[%clk
0:01:29.9]} 22. Rad1 {[%clk 0:01:39.4]} 22... Rhd8 {[%clk 0:01:21.5]} 23. Rd3
{[%clk 0:01:38.5]} 23... Bxe3 {[%clk 0:01:19.5]} 24. Kxe3 {[%clk 0:01:37.9]}
24... Rxd3+ {[%clk 0:01:19.5]} 25. cxd3 {[%clk 0:01:37.6]} 25... Rd5 {[%clk
0:01:20.2]} 26. Rc1 {[%clk 0:01:31.7]} 26... Rb5 {[%clk 0:01:18.3]} 27. Rc2
{[%clk 0:01:31.3]} 27... Kd7 {[%clk 0:01:18.3]} 28. g4 {[%clk 0:01:27.3]} 28...
g6 {[%clk 0:01:17.6]} 29. h4 {[%clk 0:01:26.5]} 29... a5 {[%clk 0:01:17.1]} 30.
b3 {[%clk 0:01:10.8]} 30... c5 {[%clk 0:01:14.2]} 31. Rh2 {[%clk 0:01:06.2]}
31... a4 {[%clk 0:01:09.7]} 32. bxa4 {[%clk 0:01:04.9]} 32... Ra5 {[%clk
0:01:09.8]} 33. h5 {[%clk 0:01:04.2]} 33... Rxa4 {[%clk 0:01:08]} 34. hxg6
{[%clk 0:01:02.5]} 34... hxg6 {[%clk 0:01:08]} 35. Rh7+ {[%clk 0:00:59.1]} 35...
Kc6 {[%clk 0:01:07]} 36. Re7 {[%clk 0:00:57.8]} 36... Rxa2 {[%clk 0:00:53.7]}
37. Rxe6+ {[%clk 0:00:57.8]} 37... Kc7 {[%clk 0:00:53.6]} 38. Rxg6 {[%clk
0:00:54]} 38... b5 {[%clk 0:00:53.3]} 39. Ke4 {[%clk 0:00:51.8]} 39... Ra4+
{[%clk 0:00:45]} 40. Kd5 {[%clk 0:00:50.1]} 40... Rxf4 {[%clk 0:00:43.6]} 41.
Kxc5 {[%clk 0:00:50.1]} 41... b4 {[%clk 0:00:43.4]} 42. Rg7+ {[%clk 0:00:49.7]}
42... Kd8 {[%clk 0:00:42.4]} 43. Kd6 {[%clk 0:00:42.5]} 43... Rd4+ {[%clk
0:00:41.3]} 44. Ke6 {[%clk 0:00:42.7]} 44... Rxd3 {[%clk 0:00:41.3]} 45. Rg8+
{[%clk 0:00:42.3]} 45... Kc7 {[%clk 0:00:40.8]} 46. Rg7+ {[%clk 0:00:35.4]}
46... Kc6 {[%clk 0:00:36.9]} 47. Rg8 {[%clk 0:00:34.3]} 47... Kc7 {[%clk
0:00:36.3]} 48. Rg7+ {[%clk 0:00:32]} 48... Kc6 {[%clk 0:00:36.3]} 49. Rh7
{[%clk 0:00:23.1]} 49... b3 {[%clk 0:00:35.3]} 50. Rh2 {[%clk 0:00:22.7]} 50...
Rd4 {[%clk 0:00:35]} 51. g5 {[%clk 0:00:21.7]} 51... Rb4 {[%clk 0:00:34.8]} 52.
Rb2 {[%clk 0:00:21.1]} 52... Kc5 {[%clk 0:00:34]} 53. g6 {[%clk 0:00:21]} 53...
Kd4 {[%clk 0:00:32.8]} 54. Kf6 {[%clk 0:00:19.7]} 54... Kc3 {[%clk 0:00:30.4]}
55. Re2 {[%clk 0:00:18]} 55... b2 {[%clk 0:00:30.2]} 56. Rxb2 {[%clk 0:00:17.8]}
56... Rxb2 {[%clk 0:00:30.1]} 57. g7 {[%clk 0:00:18.1]} 57... Rf2+ {[%clk
0:00:29.9]} 58. Ke7 {[%clk 0:00:17.8]} 58... Rg2 {[%clk 0:00:29.4]} 59. Kf7
{[%clk 0:00:17.1]} 59... Rf2+ {[%clk 0:00:29.4]} 60. Ke8 {[%clk 0:00:16.1]}
60... Rg2 {[%clk 0:00:28.8]} 61. Kf7 {[%clk 0:00:16.3]} 61... Rf2+ {[%clk
0:00:28.8]} 62. Ke7 {[%clk 0:00:15.1]} 62... Rg2 {[%clk 0:00:28.7]} 63. Kf6
{[%clk 0:00:12.5]} 63... Rf2+ {[%clk 0:00:28.5]} 64. Kg6 {[%clk 0:00:11.3]}
64... Rg2+ {[%clk 0:00:28.4]} 65. Kf7 {[%clk 0:00:08.6]} 1/2-1/2

[Event "*** Titled Tuesday Blitz"]
[Site "Chess.com"]
[Date "2020.05.19"]
[Round "9"]
[White "Chessialist"]
[Black "mamey78"]
[Result "1-0"]
[WhiteElo "2567"]
[BlackElo "2395"]
[TimeControl "180+1"]
[EndTime "13:47:35 PDT"]
[Termination "Chessialist won by resignation"]

1. e4 {[%clk 0:03:00.9]} 1... e5 {[%clk 0:02:59]} 2. Nf3 {[%clk 0:03:01]} 2...
Nc6 {[%clk 0:02:59]} 3. Bb5 {[%clk 0:03:01.2]} 3... a6 {[%clk 0:02:58.5]} 4. Ba4
{[%clk 0:03:01.4]} 4... Nf6 {[%clk 0:02:58.8]} 5. O-O {[%clk 0:03:01.3]} 5... b5
{[%clk 0:02:59]} 6. Bb3 {[%clk 0:03:00.8]} 6... Be7 {[%clk 0:02:58.9]} 7. Qe2
{[%clk 0:03:00.2]} 7... O-O {[%clk 0:02:58.7]} 8. c3 {[%clk 0:03:00.8]} 8... d5
{[%clk 0:02:58.1]} 9. d3 {[%clk 0:03:00.1]} 9... Bb7 {[%clk 0:02:55.6]} 10. Bg5
{[%clk 0:02:56.2]} 10... dxe4 {[%clk 0:02:45.6]} 11. dxe4 {[%clk 0:02:55.7]}
11... Nxe4 {[%clk 0:02:41.7]} 12. Qxe4 {[%clk 0:02:43.2]} 12... Bxg5 {[%clk
0:02:35.6]} 13. Bd5 {[%clk 0:02:42.6]} 13... Be7 {[%clk 0:02:27.7]} 14. Nxe5
{[%clk 0:02:06.1]} 14... Nxe5 {[%clk 0:02:25.2]} 15. Bxb7 {[%clk 0:02:05.1]}
15... Rb8 {[%clk 0:02:02]} 16. Qxe5 {[%clk 0:01:40.4]} 16... Rxb7 {[%clk
0:02:00]} 17. Qe2 {[%clk 0:01:16.8]} 17... c5 {[%clk 0:01:47.9]} 18. Nd2 {[%clk
0:01:14]} 18... Rd7 {[%clk 0:01:47.3]} 19. Nf3 {[%clk 0:01:14.1]} 19... Bf6
{[%clk 0:01:46.1]} 20. Rfd1 {[%clk 0:01:14.1]} 20... Re8 {[%clk 0:01:45.6]} 21.
Rxd7 {[%clk 0:01:13.7]} 21... Qxd7 {[%clk 0:01:44.8]} 22. Qf1 {[%clk 0:01:14.6]}
22... h6 {[%clk 0:01:29.4]} 23. h3 {[%clk 0:01:11.6]} 23... Qf5 {[%clk
0:01:26.8]} 24. Re1 {[%clk 0:01:09.8]} 24... Rxe1 {[%clk 0:01:22.1]} 25. Qxe1
{[%clk 0:01:10.7]} 25... Qc2 {[%clk 0:01:17.9]} 26. Qe8+ {[%clk 0:01:10.2]}
26... Kh7 {[%clk 0:01:16.9]} 27. Qxf7 {[%clk 0:01:10.4]} 27... Qxb2 {[%clk
0:01:15.6]} 28. Qd5 {[%clk 0:01:01.4]} 28... Qxc3 {[%clk 0:01:06.2]} 29. Qf5+
{[%clk 0:01:00]} 29... g6 {[%clk 0:01:01.7]} 30. Qd7+ {[%clk 0:00:59.6]} 30...
Bg7 {[%clk 0:01:01.7]} 31. h4 {[%clk 0:01:00]} 31... b4 {[%clk 0:00:50.3]} 32.
h5 {[%clk 0:00:59.7]} 32... Qc1+ {[%clk 0:00:49.5]} 33. Kh2 {[%clk 0:00:59.5]}
33... Qf4+ {[%clk 0:00:49.5]} 34. Kg1 {[%clk 0:00:59.8]} 34... gxh5 {[%clk
0:00:39.9]} 35. Qd3+ {[%clk 0:00:59.6]} 35... Kh8 {[%clk 0:00:39.6]} 36. Qxa6
{[%clk 0:00:47.7]} 36... c4 {[%clk 0:00:36.3]} 37. Qa8+ {[%clk 0:00:44.1]} 37...
Kh7 {[%clk 0:00:35.3]} 38. g3 {[%clk 0:00:45]} 38... Qf5 {[%clk 0:00:24.7]} 39.
Nh4 {[%clk 0:00:41.1]} 39... Qd3 {[%clk 0:00:20.1]} 40. Qc8 {[%clk 0:00:37.7]}
40... c3 {[%clk 0:00:17.3]} 41. Nf5 {[%clk 0:00:37.9]} 41... c2 {[%clk
0:00:16.7]} 42. Ne3 {[%clk 0:00:24.2]} 42... Qd1+ {[%clk 0:00:15.2]} 43. Kg2
{[%clk 0:00:24.6]} 43... c1=Q {[%clk 0:00:15]} 44. Qf5+ {[%clk 0:00:24.4]} 44...
Kh8 {[%clk 0:00:14.1]} 45. Nxd1 {[%clk 0:00:23.1]} 45... Qxd1 {[%clk 0:00:12.5]}
46. Qc8+ {[%clk 0:00:23.8]} 46... Kh7 {[%clk 0:00:12.2]} 47. Qf5+ {[%clk
0:00:24.5]} 47... Kg8 {[%clk 0:00:10.7]} 48. Qe6+ {[%clk 0:00:24.6]} 48... Kf8
{[%clk 0:00:10.3]} 49. Qf5+ {[%clk 0:00:23]} 49... Ke7 {[%clk 0:00:10.1]} 50.
Qe4+ {[%clk 0:00:23]} 50... Kd7 {[%clk 0:00:08.5]} 51. Qb7+ {[%clk 0:00:22]}
51... Ke6 {[%clk 0:00:06.2]} 52. Qxg7 {[%clk 0:00:21.3]} 52... Qd5+ {[%clk
0:00:06.1]} 53. Kh2 {[%clk 0:00:20.2]} 53... Qxa2 {[%clk 0:00:04.8]} 54. Qg8+
{[%clk 0:00:20.4]} 1-0